Cogmind - Beta 16 @@@ ROGUE MODE // 2025.11.01 @ 11:27:37 Player: shapeshifter Result: Destroyed by G-34 Mercenary with Small Laser Performance ------------- Evolutions (1) 500 Regions Visited (5) 1000 Robots Destroyed (70) 350 Value Destroyed (1502) 1502 Prototype IDs (40) 800 Alien Tech Used (0) 0 Bonus (104) 104 TOTAL SCORE: 4256 Bonus ------- Aligned with FarCom 300 Friendly Fire -196 Cogmind --------- Core Integrity 0/400 Matter 141/300 Energy 100/100 System Corruption 1% Temperature Cool (6) Movement Core (700) Ox13 Location -9/Exiles Parts ------- > --- POWER (1) -------- (None) > --- PROPULSION (2) --- (None) > --- UTILITY (4) ------ High-capacity Storage Unit Salvage Targeting Computer > --- WEAPON (2) ------- (None) > --- INVENTORY (20) --- Light Treads Potential Leg Potential Leg Superbattery (1500) Gravity Neutralizer Experimental Sensor Array Improved Utility Shielding Hardened Medium Armor Plating Supersonic Drone Bay (1/1) Improved Assault Rifle Improved Assault Rifle Improved Assault Rifle Improved Assault Rifle Mini Grenade Launcher Peak State ------------ > --- POWER ------------ Fission Core > --- PROPULSION ------- Light Treads Light Treads > --- UTILITY ---------- High-capacity Storage Unit Experimental Sensor Array Targeting Computer Hardened Medium Armor Plating > --- WEAPON ----------- Heavy Assault Rifle Autogun > --- INVENTORY -------- Light Treads Light Treads Light Treads Light Treads Improved Treads Improved Treads Salvage Targeting Computer Improved Utility Shielding Improved Utility Shielding Hardened Medium Armor Plating Hardened Medium Armor Plating Heavy Assault Rifle Heavy Assault Rifle Improved Assault Rifle Improved Assault Rifle Improved Assault Rifle Improved Assault Rifle Mini Grenade Launcher Datajack Scythe [Rating: 29] Favorites ----------- Power Fission Core Engine Reinforced Ion Engine Power Core Fission Core Propulsion Light Treads Treads Light Treads Wheel Wheel Utility Hardened Medium Armor Plating Device Seismic Detector Storage High-capacity Storage Unit Processor Targeting Computer Protection Hardened Medium Armor Plating Weapon Autogun Energy Gun EM Pulse Gun Ballistic Gun Autogun Launcher Mini Grenade Launcher Special Melee Weapon Datajack Build | -11 -10 -10 -9 -9 -9 ------- Run | Yrd Mat Min Mat Min Exi Slots Evolved 2 | . . . 2 . . Power . | . . . . . . Propulsion . | . . . . . . Utility 2 | . . . 2 . . Weapon . | . . . . . . Parts Attached 48 | 8 3 . 29 1 7 Power 3 | 1 1 . 1 . . Engine 2 | 1 1 . . . . Core 1 | . . . 1 . . Reactor . | . . . . . . Propulsion 13 | 2 . . 9 . 2 Treads 12 | 2 . . 8 . 2 Leg . | . . . . . . Wheel 1 | . . . 1 . . Hover . | . . . . . . Flight . | . . . . . . Utility 18 | 2 . . 13 1 2 Device 2 | 1 . . . 1 . Storage 3 | 1 . . 2 . . Processor 3 | . . . 2 . 1 Hackware . | . . . . . . Protection 10 | . . . 9 . 1 Artifact . | . . . . . . Weapon 14 | 3 2 . 6 . 3 Energy Gun 3 | 2 . . 1 . . Energy Cannon . | . . . . . . Ballistic Gun 9 | 1 2 . 5 . 1 Ballistic Cannon . | . . . . . . Launcher 1 | . . . . . 1 Special Weapon . | . . . . . . Impact Weapon . | . . . . . . Slashing Weapon . | . . . . . . Piercing Weapon . | . . . . . . Special Melee Weapon 1 | . . . . . 1 Unidentified Prototypes 3 | . . . 2 1 . Parts Lost 18 | . . . 6 . 12 Power 1 | . . . . . 1 Propulsion 4 | . . . 1 . 3 Utility 7 | . . . 3 . 4 Weapon 6 | . . . 2 . 4 Highest Loss Streak 7 | . . . 4 . 7 To Critical Strikes 3 | . . . . . 3 Average Backups 14 | 3 7 8 12 20 16 Power . | . 1 2 . . . Propulsion 4 | 1 1 1 4 6 3 Utility 3 | . 2 1 2 5 5 Weapon 5 | . 1 3 4 8 7 Tool/Special . | . . . . . . Unused Backups 36 | . 4 . 12 1 19 Power 5 | . 1 . 1 . 3 Propulsion 7 | . 1 . . . 6 Utility 15 | . 2 . 6 1 6 Weapon 8 | . . . 4 . 4 Tool/Special 1 | . . . 1 . . Average Slot Usage (%) 98 | . 100 100 97 99 99 Engine 2 | . 14 14 3 . . Core 8 | . . . 7 11 10 Treads 22 | . 28 28 21 22 21 Device 3 | . 14 14 4 . . Storage 11 | . 14 14 11 11 11 Processor 9 | . . . 8 11 11 Protection 18 | . . . 18 21 21 Energy Gun 1 | . 25 . . . . Ballistic Gun 20 | . 2 28 22 22 19 Peak Build Rating 29 | 7 11 11 24 29 27 Average Rating 19 | 4 7 11 17 23 23 On Entrance 12 | . 7 11 11 23 24 Avg Prop Armor Cover (%) 4 | . . . 4 . . Naked Turns . | . . . . . . Heaviest Build 72 | 15 22 22 72 72 72 Greatest Support 46 | 40 40 40 40 40 46 Greatest Overweight (x) 15 | . . . 2 1 15 Average Overweight (x) . | . . . . 1 1 Largest Inventory Capacity 20 | 8 8 8 20 20 20 Average Capacity 16 | 7 8 8 14 20 20 Most Carried 20 | 6 8 8 20 20 20 Average Carried 14 | 3 7 7 12 19 16 Final Capacity 20 | 8 8 8 20 20 20 Final Carried 20 | 5 8 8 20 20 14 Class Distribution -------------------- 65% | Mutant 34% | Scavenger-Mutant Dominant Class ---------------- Mutant | -10/Materials Mutant | -10/Mines Scavenger-Mutant | -9/Materials Mutant | -9/Mines Mutant | -9/Exiles Resources | -11 -10 -10 -9 -9 -9 ----------- Run | Yrd Mat Min Mat Min Exi Matter Collected 2128 | 280 . 56 1544 77 171 Remotely . | . . . . . . Salvage Created 2640 | 129 45 101 2329 . 36 Parts 168 | 6 2 6 150 . 4 Haulers Intercepted 5 | . . . 5 . . Recyclers Shooed 7 | 1 . . 5 1 . Parts Field Recycled . | . . . . . . Retrieved Matter . | . . . . . . Parts Self-Destructed . | . . . . . . Prevented . | . . . . . . Parts Restored . | . . . . . . Kills | -11 -10 -10 -9 -9 -9 ------- Run | Yrd Mat Min Mat Min Exi Combat Hostiles Destroyed 40 | . . 1 39 . . Guns 39 | . . 1 38 . . AOE 1 | . . . 1 . . Classes Destroyed 11 | 2 1 2 5 . 1 Builder 2 | . . . 2 . . Tunneler 2 | 2 . . . . . Hauler 5 | . . . 5 . . Recycler 9 | 1 . . 8 . . Operator 1 | . . . 1 . . Watcher 7 | . 2 . 5 . . Swarmer 10 | . . . 10 . . Grunt 20 | . . 1 19 . . Sentry 10 | . . . 10 . . Zionite 3 | . . . . . 3 Guerrilla 1 | . . 1 . . . Best Kill Streak 15 | 3 1 1 15 . 3 Combat Bots Only 14 | . . 1 14 . . Max Kills in Single Turn 2 | 2 1 1 2 . 2 Gunslinging 1 | . . . 1 . . Exploded 1 | . . . 1 . . Melee . | . . . . . . Uniques/NPCs Destroyed 1 | . . . . . 1 8R-AWN (-9/Exiles) Combat | -11 -10 -10 -9 -9 -9 -------- Run | Yrd Mat Min Mat Min Exi Hostile Shots Fired 326 | . 1 16 186 . 123 Missed 82 | . 1 . 54 . 27 Hits 244 | . . 16 132 . 96 Projectile 244 | . . 16 132 . 96 Critical Strikes 35 | . . . 3 . 32 Damage Taken 3840 | 22 . 201 1691 . 1926 Core 445 | . . 39 186 . 220 Absorbed by Shields . | . . . . . . Core Remaining (%) 92 | 100 . 84 . . . Volleys Fired 209 | 4 4 8 159 1 33 Largest 2 | 2 2 2 2 2 2 Hottest 80 | 80 80 46 46 46 46 Shots Fired 410 | 8 8 16 318 2 58 Gun 402 | 8 8 16 318 2 50 Cannon . | . . . . . . Launcher 8 | . . . . . 8 Special . | . . . . . . Kinetic 386 | . . 16 318 2 50 Thermal . | . . . . . . Explosive 8 | . . . . . 8 Electromagnetic 16 | 8 8 . . . . Robot Hit Streak 15 | 2 3 6 11 3 15 Robot Miss Streak 6 | 1 1 3 6 . 1 Penetration Max . | . . . . . . Secondary Targets 8 | . . . 8 . . Max Gunslinging Chain 1 | . . . 1 . . Shots Hit Robots 280 | 5 4 12 207 2 50 Core Hits 103 | 4 2 2 84 . 11 Critical Kills 1 | . . 1 . . . Critical Parts Destroyed 1 | . . . 1 . . Critical Strikes 2 | . . 1 1 . . Destroy 2 | . . 1 1 . . Melee Attacks 4 | . . . . . 4 Impact . | . . . . . . Slashing . | . . . . . . Piercing . | . . . . . . Sneak Attacks 4 | . . . . . 4 Combat Hostiles . | . . . . . . Follow-up Attacks . | . . . . . . Damage Inflicted 4733 | 100 82 191 3319 33 1008 Guns 4363 | 78 82 191 3319 33 660 Cannons . | . . . . . . Explosions 370 | 22 . . . . 348 Melee . | . . . . . . Ramming . | . . . . . . Kinetic 4203 | . . 191 3319 33 660 Thermal 22 | 22 . . . . . Explosive 348 | . . . . . 348 Electromagnetic 160 | 78 82 . . . . Impact . | . . . . . . Slashing . | . . . . . . Piercing . | . . . . . . Highest Corruption 1 | . . . . . 1 Average Corruption 1 | . . . . . 1 Corruption Purged . | . . . . . . Corruption Blocked . | . . . . . . Overload Shots . | . . . . . . Overflow Damage . | . . . . . . Projectiles . | . . . . . . Explosions . | . . . . . . Melee . | . . . . . . Knockbacks . | . . . . . . Impact . | . . . . . . Kinetic . | . . . . . . Secondary . | . . . . . . Self-Inflicted Damage 22 | 22 . . . . . Shots 1 | 1 . . . . . Rammed . | . . . . . . Targets Rammed . | . . . . . . Kicked . | . . . . . . Crushed . | . . . . . . Highest Temperature 236 | 84 36 85 236 26 210 Average Temperature 62 | 43 16 39 55 14 122 Received Heat Transfer 852 | . . 111 669 . 72 Effects 2 | . . . 2 . . Energy Bleed 1 | . . . 1 . . Interference 1 | . . . 1 . . Siege Activations . | . . . . . . Martial Activations . | . . . . . . Shielding Activations . | . . . . . . Robots Disrupted . | . . . . . . Combat Hostiles . | . . . . . . Robots Corrupted . | . . . . . . Combat Hostiles . | . . . . . . Parts Fried . | . . . . . . Impact Corruptions . | . . . . . . Robots Melted . | . . . . . . Combat Hostiles . | . . . . . . Parts Melted . | . . . . . . Heat Transferred 50 | 50 . . . . . Parts Sabotaged . | . . . . . . Parts Stolen . | . . . . . . Parts Stripped . | . . . . . . Power Chain Reactions 1 | 1 . . . . . Alert | -11 -10 -10 -9 -9 -9 ------- Run | Yrd Mat Min Mat Min Exi Maximum Alert Level 1 | . . . 1 . . Low Security (%) 68 | 100 100 100 52 100 . Level 1 31 | . . . 47 . . Level 2 . | . . . . . . Level 3 . | . . . . . . Level 4 . | . . . . . . Level 5 . | . . . . . . High Security . | . . . . . . Max Security . | . . . . . . Peak Influence 381 | 15 7 20 381 26 . Initial 26 | . 3 . . 26 . Average 124 | 2 . 2 187 . . Influence Increases 1365 | 15 23 20 1307 . . Destroy 0b10 Robot/C 800 | . . 20 780 . . Destroy 0b10 Robot/NC 130 | 15 10 . 105 . . Destroy Leader 224 | . 4 . 220 . . Successful Hack 56 | . 9 . 47 . . Destroy Structure 5 | . . . 5 . . Partial Spotted 15 | . . . 15 . . Lose Combat Pursuer 135 | . . . 135 . . Influence Decreases 1365 | 10 28 20 1239 68 . Entered New Map 44 | . 2 . . 42 . Time Decay 811 | 10 26 20 729 26 . Lost Part 60 | . . . 60 . . Purge Threat 450 | . . . 450 . . Squads Dispatched 8 | . 2 . 6 . . Investigation 5 | . . . 5 . . Extermination . | . . . . . . Reinforcement 3 | . 2 . 1 . . Assault . | . . . . . . Garrison . | . . . . . . Intercept . | . . . . . . Searches Triggered . | . . . . . . Construction Impeded . | . . . . . . Haulers Reinforced . | . . . . . . Active Scanning Responses . | . . . . . . Cargo Convoy Interrupts . | . . . . . . Stealth | -11 -10 -10 -9 -9 -9 --------- Run | Yrd Mat Min Mat Min Exi Distress Signals 2 | . . . 2 . . Communications Jammed . | . . . . . . Distress Signals . | . . . . . . Times Spotted 102 | . 4 2 55 . 41 Peak Tracking Total 9 | . 1 2 8 . 9 Tactical Retreats 9 | . . . 5 . 4 Traps | -11 -10 -10 -9 -9 -9 ------- Run | Yrd Mat Min Mat Min Exi Traps Triggered 3 | . . . 3 . . Indirectly . | . . . . . . Trap Hack Attempts . | . . . . . . Triggered . | . . . . . . Disarmed . | . . . . . . Reprogrammed . | . . . . . . Reused . | . . . . . . Traps Extracted . | . . . . . . Installed . | . . . . . . Triggered . | . . . . . . Machines | -11 -10 -10 -9 -9 -9 ---------- Run | Yrd Mat Min Mat Min Exi Machines Disabled 2 | . . . . . 2 Max in Single Turn 1 | . . . . . 1 Machines Repaired . | . . . . . . Machines Dismantled . | . . . . . . Machines Sabotaged . | . . . . . . Overloaded Fab Kills . | . . . . . . Hacking | -11 -10 -10 -9 -9 -9 --------- Run | Yrd Mat Min Mat Min Exi Machines Accessed 17 | . 2 . 14 . 1 Terminals 13 | . 2 . 11 . . Fabricators . | . . . . . . Repair Stations . | . . . . . . Recycling Units 2 | . . . 2 . . Scanalyzers 1 | . . . 1 . . Garrison Access . | . . . . . . Total Hacks 42 | . 5 . 36 . 1 Successful 19 | . 3 . 15 . 1 Failed 23 | . 2 . 21 . . Catastrophic 3 | . . . 3 . . Database Lockouts . | . . . . . . Manual 22 | . 5 . 16 . 1 Terminals 34 | . 5 . 29 . . Fabricators . | . . . . . . Repair Stations . | . . . . . . Recycling Units 5 | . . . 5 . . Scanalyzers 2 | . . . 2 . . Garrison Access . | . . . . . . Terminal Hacks 8 | . 1 . 6 . 1 Robot Analysis 1 | . . . 1 . . Unreport Threat 3 | . . . 3 . . Registered Components 1 | . . . 1 . . Zone Layout 2 | . 1 . 1 . . Proto ID Catalog 1 | . . . . . 1 Fabricator Hacks . | . . . . . . Repair Station Hacks . | . . . . . . Recycling Unit Hacks 1 | . . . 1 . . Retrieve Components 1 | . . . 1 . . Scanalyzer 2 | . . . 2 . . Retrieve Study 2 | . . . 2 . . Garrison Access Hacks . | . . . . . . Unauthorized Hacks 8 | . 2 . 6 . . Terminals 8 | . 2 . 6 . . Skim 8 | . 2 . 6 . . Fabricators . | . . . . . . Repair Stations . | . . . . . . Recycling Units . | . . . . . . Scanalyzers . | . . . . . . Garrison Access . | . . . . . . Data Cores Recovered . | . . . . . . Used . | . . . . . . Hacking Detections 15 | . 1 . 14 . . Full Trace Events 2 | . . . 2 . . Feedback Events . | . . . . . . Feedback Blocked . | . . . . . . Robot Schematics Acquired . | . . . . . . Robots Built . | . . . . . . Authchips . | . . . . . . Time . | . . . . . . Total Robot Build Rating . | . . . . . . Part Schematics Acquired . | . . . . . . Parts Built . | . . . . . . Authchips . | . . . . . . Time . | . . . . . . Total Part Build Rating . | . . . . . . Part Studies Acquired 2 | . . . 2 . . Parts Repaired . | . . . . . . Time . | . . . . . . Parts Recycled . | . . . . . . Recycled Matter . | . . . . . . Retrieved Matter . | . . . . . . Retrieved Components 10 | . . . 10 . . Parts Scanalyzed . | . . . . . . Part Schematics Acquired . | . . . . . . Parts Damaged . | . . . . . . Bothacking | -11 -10 -10 -9 -9 -9 ------------ Run | Yrd Mat Min Mat Min Exi Used RIF Installer . | . . . . . . Robots Hacked 4 | . . . . . 4 Non-combat 3 | . . . . . 3 Combat 1 | . . . . . 1 Robot Hacks Applied 4 | . . . . . 4 parse_system 4 | . . . . . 4 Relay Couplers Released . | . . . . . . Fabnet Peak Effective % . | . . . . . . Robots Rewired . | . . . . . . Allies Hacked . | . . . . . . Hacks Repelled . | . . . . . . Allies | -11 -10 -10 -9 -9 -9 -------- Run | Yrd Mat Min Mat Min Exi Total Allies 4 | . . . . 4 . Largest Group 4 | . . . . 4 4 Highest-Rated Group 71 | . . . . 71 71 Highest-Rated Ally 31 | . . . . 31 31 Total Orders 1 | . . . . . 1 STAY 1 | . . . . . 1 Ally Attacks 67 | . . . . . 67 Total Damage 460 | . . . . . 460 Kills 1 | . . . . . 1 Allies Corrupted . | . . . . . . Allies Melted . | . . . . . . Intel | -11 -10 -10 -9 -9 -9 ------- Run | Yrd Mat Min Mat Min Exi Active Infowar (turns) 2179 | 1 453 251 1473 1 . Sensors 1 | . . . . 1 . Seismic 2178 | 1 453 251 1473 . . Robot Analysis Total 1 | . . . 1 . . Derelict Logs Recovered 3 | . . 1 . 2 . Drone Launches . | . . . . . . Drone Recoveries . | . . . . . . Exploration | -11 -10 -10 -9 -9 -9 ------------- Run | Yrd Mat Min Mat Min Exi Turns Passed 8644 | 95 453 251 4081 1301 2463 Spaces Moved 3743 | 51 260 141 1786 533 972 Core 17 | 16 . . . . 1 Treads 3724 | 35 260 141 1784 533 971 Legs . | . . . . . . Wheels 2 | . . . 2 . . Hover . | . . . . . . Flight . | . . . . . . Fastest Speed 50 | 50 160 160 110 240 160 Average Speed 207 | 125 160 160 193 240 240 Slowest Speed 800 | 160 160 160 240 240 800 Overloaded Moves . | . . . . . . Propulsion Burnouts . | . . . . . . Robots Hopped . | . . . . . . Potential Cave-ins . | . . . . . . Cave-ins Triggered . | . . . . . . Exploration Rate (%) 57 | 4 44 39 97 93 70 Regions Visited 5 Branch Regions 3 Pre-discovered Areas 5 | . . . 4 1 . Known Exits Taken 1 | . . 1 . . . Unknown Exits Taken 4 | 1 1 . 1 1 . Scrap Searched 1 | . . . . 1 . Spaces Dug . | . . . . . . Terrain Destroyed 20 | 2 . . . . 18 Melee . | . . . . . . Projectile . | . . . . . . AOE 20 | 2 . . . . 18 Terrain Rammed . | . . . . . . Walls Destroyed . | . . . . . . Machines Disabled . | . . . . . . Actions | -11 -10 -10 -9 -9 -9 --------- Run | Yrd Mat Min Mat Min Exi Total 4286 | 74 293 155 2160 555 1049 Wait 121 | . 11 3 93 12 2 Move 3738 | 50 259 140 1785 532 972 Hop . | . . . . . . Pick Up 85 | 11 8 2 50 2 12 Fast Attach 7 | 1 2 . 1 3 . Attach 25 | 7 . . 10 . 8 Detach 1 | 1 . . . . . Swap 30 | . 1 . 24 . 5 Drop 66 | . 8 2 38 5 13 Fire 209 | 4 4 8 159 1 33 Melee 4 | . . . . . 4 Ram . | . . . . . . Kick . | . . . . . . Crush . | . . . . . . Escape Stasis . | . . . . . . Rewire . | . . . . . . Trap . | . . . . . . Miscellaneous . | . . . . . . Route ------- -11/Scrapyard -10/Materials -10/Mines (discovered 2 exits: *Mat x2) -9/Materials (discovered 6 exits: *Mat x3 / [*Min x2] / [*Sto]) -9/Mines (discovered 3 exits: *Mat x2 / *Exi) -9/Exiles (discovered 1 exit: [*Min]) History --------- Turn | Location | Event 8 | -11/Scrapyard | Discovered new exit (range 16) 96 | -11/Scrapyard | Entered Materials 306 | -10/Materials | Build established: Mutant 425 | -10/Materials | Discovered new exit (range 6) 549 | -10/Materials | Entered Mines 550 | -10/Mines | Assembled infested the area 555 | -10/Mines | Assisted by a Guerilla fighting off Assembled 795 | -10/Mines | Identified exit to Materials 797 | -10/Mines | Discovered exit to Materials (range 2) 800 | -10/Mines | Entered Materials 800 | -9/Materials | Evolved 2 slots: Utility x2 811 | -9/Materials | Discovered new exit (range 16) 1292 | -9/Materials | Lost 4 parts (1n2u1w) 1301 | -9/Materials | Destroyed 14 combat bots 1408 | -9/Materials | Discovered new exit (range 16) 1936 | -9/Materials | Discovered new exit (range 11) 2134 | -9/Materials | Build established: Scavenger-Mutant 2262 | -9/Materials | Discovered new exit (range 12) 2771 | -9/Materials | Discovered new exit (range 16) 3334 | -9/Materials | Learned Storage emergency access door positions 3395 | -9/Materials | Identified exit to Materials 3444 | -9/Materials | Learned Storage stockpile data 3481 | -9/Materials | Learned location of Mines (-9) 3545 | -9/Materials | Loaded intel: 1 trap record 3592 | -9/Materials | Learned location of Zion (-6) 4855 | -9/Materials | Build established: Mutant 4881 | -9/Materials | Entered Mines 4997 | -9/Mines | Found a damaged Exp. Sensor Array with a note attached 5002 | -9/Mines | Found Prototype Device 5002 | -9/Mines | Identified Exp. Sensor Array 5085 | -9/Mines | Deemed a non-threat by the Exiles lab entrance 5085 | -9/Mines | Discovered new exit (range 5) 5164 | -9/Mines | Discovered exit to Materials (range 6) 5248 | -9/Mines | Learned Materials emergency access door positions 5253 | -9/Mines | Discovered exit to Materials (range 13) 5404 | -9/Mines | Assisted by bots powering up and referring to "LRC-V3" 5443 | -9/Mines | Found DCF Scrap (15 items) 5640 | -9/Mines | A weapon hastily lodged in a ceiling crevice suddenly fell to the ground 6109 | -9/Mines | Received a Mining Laser from a helpful Derelict 6182 | -9/Mines | Entered Exiles 6182 | -9/Exiles | Accompanied by 4 allies 6242 | -9/Exiles | Met 8R-AWN 6283 | -9/Exiles | Met EX-HEX 6391 | -9/Exiles | Met EX-DEC 7076 | -9/Exiles | Met EX-BIN 7560 | -9/Exiles | Discovered new exit (range 14) 8229 | -9/Exiles | Aligned with FarCom system 8231 | -9/Exiles | Given EX-Vault access code 8286 | -9/Exiles | Opened EX-Vault 8308 | -9/Exiles | Found Superbattery 8314 | -9/Exiles | Found Potential Leg 8317 | -9/Exiles | Found Potential Leg 8320 | -9/Exiles | Found Supersonic Drone Bay 8367 | -9/Exiles | Warned to stay clear of 0b10 Research branches 8387 | -9/Exiles | Exiles lab attacked by MAIN.C 8480 | -9/Exiles | Attacked by the Exiles 8481 | -9/Exiles | Core integrity fell below 50% 8550 | -9/Exiles | Core integrity fell below 20% 8562 | -9/Exiles | Allies destroyed 8R-AWN 8603 | -9/Exiles | Lost 4 parts (2n2w) 8645 | -9/Exiles | Destroyed by G-34 Mercenary with Small Laser Last Messages --------------- 08622_ Dropped Mni. Grenade Launcher. 08625_ DAS Turret system terminally corrupted. 08627_ P-60 Hacker resets G-34 Mercenary, system corruption cleaned. 08630_ Penetrated by Slug. 08630_ Hrd. Medium Armor Plating destroyed. 08631_ Slug penetrates B-36 Bruiser. 08631_ B-36 Bruiser suffers critical hit (Destroy). 08633_ Hvy. Assault Rifle+ destroyed. 08634_ Acquired Mni. Grenade Launcher. 08637_ Penetrated by Slug. 08639_ Imp. Treads destroyed. 08640_ The unstable cave ceiling collapses. 08640_ Dropped Imp. Treads. 08640_ Acquired Gravity Neutralizer. 08640_ Penetrated by Slug. 08640_ Hvy. Assault Rifle+ destroyed. 08641_ Acquired 120 matter. 08643_ Penetrated by Slug. 08643_ Hrd. Medium Armor Plating destroyed. 08643_ Targeting Computer destroyed. Map ----- +----------------------------------------------------+ | ???????????????????????????????#" ## #???? | | ???????????????????????????????#""""""?# #?### | | ???????????????????????????????##"###??# #?#"" | | ???????????????????????????????????????# #?#"" | | ???????????????????????????????????????# #?#"" | | ??????????????????????????????????????## ###"" | | ??????#######?????????????????????????#" | | ??????#!!! "#?????????????????????????#" | | #?????# "#?????????????????????????#" | | #?????# "#?????????????????????????#" | | ##???## ""#????????????##???????????#" | | #####" ""#???????????? """????????#" | | ##" ""#????????????" """#???????## | | #"" #?????????????"" ?????????# | | #????????????#"" ?????????#" "X | | ##???????????#"" "#????????#" "" | | # "#???????????? ""?????????#" """" | | " ###???????????" "?????????##" ##### | | " #####???????# #????????##"" #???? | | "### ##???### ###?######"" #???? | | !"#?##" = "#####X# #"###""""""" ##??? | | !##??#" / """""" " "" ##?? | | "###???#"# " """ " ### | | ##?????#### !* * % " | | ?????????# # % =* * | | ?????? # %* = @! %! | | ?????????## # * !! [%= | | ??????????## # ## b *%* | | ?????????????#??##" != | | ?????????????????#" """""" | | ????????????????##" ######""" | | ????????????????#" ""##????#####""" | | ???????????????##" """##?????????##""" | | ???????????????#" hgg "##???????????#""" | | ???????????????# ph #???????????##"" | | ???????????????#"" % ########??####"""" | | ???????????????#"" h ## ####""" | | ???????????????#"" % """" | | ???????????????##"" | | ????????????????#""" | | ????????????????## | | ?????????????????#" " "" | | ?????????????????#"""" ""## ##""" " | | ?????????????????#"" ""#### ######" | | ?????????????????#" """"##??# #????## | | ?????????????????#""" """#??## ####??? | | ?????????????????## ""##??# "!#??? | | ??????????????????#"" """##???#" !#??? | | ??????????????????##""" ##????#" "#??? | | ???????????????????##"""" ##?????#!!""!"#??? | +----------------------------------------------------+ Best States ------------- Heat Dissipation 28 Energy Generation 18 Energy Capacity 310 Matter Stores 300 Matter Capacity 300 Sight Range 16 Terrain Scan Density 10 Armor Coverage 450 Evasion (%) 50 Targeting Accuracy 10 Recoil Reduction 2 Salvage Targeting 1 Item Schematics ----------------- None Robot Schematics ------------------ None Fabricated ------------ Nothing Repaired ---------- Nothing Studied --------- Hvy. Assault Rifle | -9/Materials | Hacked Autogun | -9/Materials | Hacked Alien Tech Used ----------------- None Achievements -------------- None Challenges ------------ None Game ------ Seed RiotTitaniumTrident Manual? 0 Play Time 00:31:51 Cumulative 454.9 hours Start 2025.11.01 @ 08:11:41 End 2025.11.01 @ 11:27:37 Sessions 2 Manual Loads 0 Difficulty Rogue Special Mode None Game No. 577 Rogue 577 Adventurer 0 Explorer 0 Win Type - Total 14 Types 6/0/2/2/1/0/2/1/0/0 Lore% 90 Gallery% 85 Achievement% 61 Wizard Run 0 Options --------- Layout 0 ASCII 0 Keyboard 0 Movement Mouse Keybinds 0 Fullscreen 1 Font 24/Terminus Map View 76x50 Zoom Use 0% Tactical HUD 1 Map Filters NONE Filters NONE Steam 1 RUN: a2bff981-c157-4a05-aae1-68db2d93e42a